bitfinex/quotes_SOLUSD_20250118
["timestamp","ask_amount","ask_price","bid_price","bid_amount"]
[1737220684069,29.6753636,252.76,252.64,29.6753636]
[1737220684476,29.6753636,252.78,252.66,59.6753636]
[1737220684946,29.6753636,252.76,252.66,59.6753636]
[1737220685153,29.6753636,252.79,252.68,29.6753636]
[1737220685360,0.063,252.72,252.68,29.6753636]
[1737220685562,0.063,252.72,252.69,30.0]
[1737220685762,0.063,252.72,252.7,29.6753636]
[1737220685967,0.063,252.72,252.69,30.0]
[1737220686163,29.6753636,252.7,252.57,29.6753636]
[1737220686367,29.7383636,252.72,252.61,29.6753636]
[1737220686565,29.6753636,252.7,252.63,30.0]
[1737220686772,0.063,252.72,252.69,29.6753636]
[1737220686979,89.27005897,252.81,252.7,0.59374917]
[1737220687275,89.27005897,252.81,252.8,29.6753636]
[1737220688065,89.27005897,252.81,252.8,59.6753636]
[1737220688774,89.03271897,252.81,252.8,59.6753636]
[1737220689277,51.90581897,252.81,252.8,29.6753636]
[1737220689469,9.23123681,252.81,252.8,59.3507272]
[1737220689671,20.0,252.92,252.8,59.3507272]
[1737220689881,20.0,252.92,252.91,29.6753636]
[1737220690878,6.718,253.15,252.91,59.3507272]
[1737220691178,6.718,253.15,252.99,29.6753636]
[1737220691473,29.6753636,253.11,252.99,29.6753636]
[1737220691678,29.6753636,253.13,252.99,29.6753636]
[1737220691979,29.6753636,253.13,252.99,59.6753636]
[1737220692158,6.718,253.15,252.99,59.6753636]
[1737220692862,29.6753636,253.13,252.99,59.6753636]
[1737220693084,36.3933636,253.15,253.0,29.0]
[1737220693377,29.6753636,253.11,253.0,58.6753636]
[1737220693676,29.6753636,253.01,252.9,29.6753636]
[1737220693860,29.6753636,253.03,252.92,29.6753636]
[1737220694172,29.6753636,253.07,252.87,0.59316852]
[1737220694375,29.6753636,253.03,252.94,29.6753636]
[1737220694575,29.6753636,253.0,252.89,29.6753636]
[1737220694776,29.6753636,252.95,252.85,29.6753636]
[1737220694979,29.6753636,252.93,252.83,29.6753636]
[1737220695285,29.6753636,252.93,252.72,29.6753636]
[1737220695286,19.66766992,253.22,252.86,29.6753636]
[1737220695457,29.6753636,252.95,252.84,59.6753636]
[1737220695658,20.0,252.86,252.84,30.0]
[1737220695858,29.6753636,252.87,252.76,29.6753636]
[1737220696090,29.6753636,252.89,252.78,29.6753636]
[1737220696260,29.6753636,252.91,252.8,29.6753636]
[1737220696662,29.6753636,252.93,252.82,29.6753636]
[1737220696862,29.6753636,252.95,252.86,29.6753636]
[1737220697359,0.063,252.95,252.88,29.6753636]
[1737220697570,29.6753636,252.9,252.79,30.0]
[1737220697769,29.6753636,252.94,252.83,29.6753636]
[1737220698161,29.6753636,252.94,252.81,29.6753636]
[1737220698357,6.6434,253.05,252.85,29.6753636]
[1737220698572,2.14069195,253.05,252.96,29.6753636]
[1737220698777,0.72896467,253.18,252.96,29.6753636]
[1737220698778,29.6753636,253.16,253.04,29.6753636]
[1737220698981,31.89798032,253.18,252.97,0.59290236]
[1737220699180,11.89,253.21,252.88,0.59286145]
[1737220699385,29.6753636,253.12,253.0,29.6753636]
[1737220699567,29.6753636,253.01,252.84,29.6753636]
[1737220699774,29.6753636,252.95,252.84,29.6753636]
[1737220699968,29.6753636,252.9,252.79,29.6753636]
[1737220700186,11.89,252.95,252.7,29.6753636]
[1737220700378,29.6753636,252.82,252.7,29.6753636]
[1737220700566,29.6753636,252.82,252.61,0.59356387]
[1737220700567,29.6753636,252.82,252.72,29.6753636]
[1737220700765,20.0,252.77,252.68,29.6753636]
[1737220701066,49.6753636,252.77,252.66,29.6753636]
[1737220701275,29.6753636,252.79,252.68,29.6753636]
[1737220701462,29.6753636,252.87,252.76,29.6753636]
[1737220701663,29.6753636,252.83,252.72,29.6753636]
[1737220701980,29.6753636,252.77,252.66,29.6753636]
[1737220702186,29.6753636,252.79,252.68,29.6753636]
[1737220702490,29.6753636,252.79,252.61,0.59371583]
[1737220702491,29.6753636,252.81,252.7,29.6753636]
[1737220702683,29.6753636,252.77,252.66,29.6753636]
[1737220702886,29.6753636,252.75,252.64,29.6753636]
[1737220703385,29.6753636,252.71,252.61,29.6753636]
[1737220703583,20.0,252.81,252.65,29.6753636]
[1737220703770,29.6753636,252.73,252.61,29.6753636]
[1737220703978,29.6753636,252.71,252.61,29.6753636]
[1737220704391,20.0,252.81,252.55,0.03]
[1737220704392,29.6753636,252.73,252.63,29.6753636]
[1737220704579,29.6753636,252.75,252.63,29.6753636]
[1737220704778,29.6753636,252.84,252.67,29.6753636]
[1737220704983,29.6753636,252.84,252.55,8.69779158]
[1737220704984,29.6753636,252.77,252.65,29.6753636]
[1737220705175,29.6753636,252.74,252.67,8.66779158]
[1737220705380,20.0,252.75,252.68,29.6753636]
[1737220705583,29.6753636,252.78,252.6,29.6753636]
[1737220705780,20.0,252.75,252.66,29.6753636]
[1737220705977,20.0,252.75,252.68,29.6753636]
[1737220706177,20.0,252.66,252.56,29.6753636]
[1737220706381,6.5442,252.74,252.38,12.6843]
[1737220706382,29.6753636,252.61,252.52,29.6753636]
[1737220706580,29.6753636,252.61,252.39,0.59401563]
[1737220706581,29.6753636,252.65,252.54,29.6753636]
[1737220706782,29.6753636,252.63,252.52,29.6753636]
[1737220707072,29.6753636,252.63,252.39,0.59401563]
[1737220707073,29.6753636,252.55,252.43,29.6753636]
[1737220707274,29.6753636,252.49,252.38,29.6753636]
[1737220707490,29.6753636,252.49,252.4,29.6753636]
[1737220707896,20.0,252.48,252.29,0.62438004]
[1737220708104,20.0,252.29,252.22,29.6753636]
[1737220708276,29.6753636,252.28,252.18,31.84155594]
[1737220708478,29.6753636,252.24,252.18,2.16619234]
[1737220708703,20.0,252.17,252.07,29.6753636]
[1737220708997,29.6753636,252.17,252.08,29.6753636]
[1737220709195,2.13332177,252.24,252.0,29.6753636]
[1737220709498,29.6753636,252.09,251.97,29.6753636]
[1737220709794,29.6753636,252.1,251.99,29.6753636]
[1737220709999,19.63056467,252.23,252.03,29.6753636]
[1737220710000,29.6753636,252.14,252.03,29.6753636]
[1737220710292,29.6753636,252.1,252.01,29.6753636]
[1737220710508,29.6753636,252.14,252.05,29.6753636]
[1737220710793,29.6753636,252.16,252.05,29.6753636]
[1737220710996,29.6753636,252.14,252.03,29.6753636]
[1737220711296,20.62543113,252.23,251.89,0.59517635]
[1737220711297,20.62543113,252.23,252.07,29.6753636]
[1737220711495,29.6753636,252.18,252.05,29.6753636]
[1737220711802,29.6753636,252.2,252.09,29.6753636]
[1737220711976,29.6753636,252.22,252.11,29.6753636]
[1737220712177,29.6753636,252.2,252.09,29.6753636]
[1737220712373,20.0,252.15,252.07,29.6753636]
[1737220712580,19.69,252.33,252.01,0.59504011]
[1737220712581,12.2209,252.36,252.14,29.6753636]
[1737220712899,29.6753636,252.41,252.3,29.6753636]
[1737220713084,29.6753636,252.37,252.27,29.6753636]
[1737220713283,29.6753636,252.41,252.31,29.6753636]
[1737220713595,18.966,252.51,252.13,0.59465141]
[1737220713791,0.72896467,252.5,252.13,0.59465141]
[1737220714200,12.61896467,252.5,252.12,29.6753636]
[1737220714509,12.61896467,252.5,252.05,0.59476127]
[1737220714510,31.89,252.39,252.05,0.59482176]
[1737220714677,20.0,252.21,252.14,29.6753636]
[1737220714989,20.0,252.21,252.18,29.6753636]
[1737220715194,29.6753636,252.34,252.2,29.6753636]
[1737220715379,29.6753636,252.34,252.24,29.6753636]
[1737220715579,29.6753636,252.36,252.24,29.6753636]
[1737220715792,29.6753636,252.4,252.28,29.6753636]
[1737220715984,1.42264336,252.44,252.34,29.6753636]
[1737220716288,29.6753636,252.51,252.38,29.6753636]
[1737220716492,29.6753636,252.46,252.36,29.6753636]
[1737220716798,29.6753636,252.48,252.36,29.6753636]
[1737220717413,1.42467131,252.48,252.38,29.6753636]
[1737220717585,29.6753636,252.5,252.4,29.6753636]
[1737220717786,73.8766454,252.54,252.42,29.6753636]
[1737220717986,29.6753636,252.51,252.4,29.6753636]
[1737220718986,29.6753636,252.49,252.38,29.6753636]
[1737220719200,29.6753636,252.43,252.32,29.6753636]
[1737220719500,20.0,252.4,252.32,29.6753636]
[1737220719706,19.67819142,252.4,252.32,29.6753636]
[1737220719999,29.6753636,252.45,252.34,29.6753636]
[1737220720307,29.6753636,252.43,252.32,29.6753636]
[1737220720605,29.6753636,252.38,252.13,0.59451031]
[1737220720802,29.6753636,252.36,252.25,29.6753636]
[1737220721195,29.6753636,252.34,252.23,29.6753636]
[1737220721712,20.0,252.27,252.19,29.6753636]
[1737220721908,20.0,252.27,252.12,29.6753636]
[1737220721909,29.6753636,252.22,252.13,29.6753636]
[1737220722216,29.6753636,252.22,252.11,29.6753636]
[1737220722512,20.0,252.19,252.11,29.6753636]
[1737220722890,20.0,252.21,252.13,29.6753636]
[1737220723094,20.0,252.21,252.12,29.6753636]
[1737220723303,20.0,252.19,252.1,29.6753636]
[1737220723513,29.6753636,252.26,252.16,29.6753636]
[1737220723700,29.6753636,252.28,252.18,29.6753636]
[1737220723904,29.6753636,252.35,252.24,29.6753636]
[1737220724095,29.6753636,252.37,252.26,29.6753636]
[1737220724291,29.6753636,252.35,252.24,29.6753636]
[1737220724491,18.966,252.39,252.13,0.59488658]
[1737220724492,31.03466574,252.39,252.28,29.6753636]
[1737220724703,0.063,252.48,252.38,29.6753636]
[1737220725018,29.7383636,252.48,252.37,29.6753636]
[1737220725209,0.063,252.48,252.39,29.6753636]
[1737220725511,0.063,252.48,252.38,29.6753636]
[1737220725703,0.063,252.48,252.46,29.6753636]
[1737220726506,6.8689,252.66,252.47,29.6753636]
[1737220726811,12.8094,252.78,252.64,29.6753636]
[1737220726812,29.6753636,252.78,252.64,29.6753636]
[1737220727004,1.40027928,252.8,252.73,29.6753636]
[1737220727217,67.5194,252.91,252.49,0.5935853]
[1737220727417,11.89,252.88,252.49,0.5935853]
[1737220727595,0.5935853,252.49,252.47,12.6603]
[1737220727906,0.5935853,252.49,252.35,12.6603]
[1737220728119,0.5935853,252.49,252.36,0.59423561]
[1737220728309,0.5935853,252.49,252.39,29.1753636]
[1737220728512,30.2689489,252.49,252.37,29.6753636]
[1737220728706,30.2689489,252.49,252.39,29.6753636]
[1737220729209,29.6753636,252.4,252.28,29.6753636]
[1737220729796,29.6753636,252.48,252.13,1.42018385]
[1737220729797,29.6753636,252.42,252.3,29.6753636]
[1737220729992,29.6753636,252.42,252.32,29.6753636]
[1737220730315,29.6753636,252.46,252.34,29.6753636]
[1737220730616,29.6753636,252.44,252.32,29.6753636]
[1737220730793,29.6753636,252.42,252.3,29.6753636]
[1737220731000,29.6753636,252.42,252.31,0.59441323]
[1737220731222,29.6753636,252.42,252.3,29.6753636]
[1737220731591,29.6753636,252.43,252.31,29.6753636]
[1737220732713,29.6753636,252.45,252.35,29.6753636]
[1737220732918,29.6753636,252.45,252.33,29.6753636]
[1737220733216,29.6753636,252.41,252.31,29.6753636]
[1737220733520,29.6753636,252.39,252.29,29.6753636]
[1737220733700,49.6753636,252.45,252.33,29.6753636]
[1737220734200,29.6753636,252.47,252.37,29.6753636]
[1737220734394,0.5935853,252.49,252.43,29.6753636]
[1737220735311,0.5935853,252.49,252.45,29.6753636]
[1737220735620,0.5935853,252.49,252.41,29.6753636]
[1737220736015,0.5935853,252.49,252.43,29.6753636]
[1737220736212,0.5935853,252.49,252.45,29.6753636]
[1737220736527,0.5935853,252.49,252.48,29.6753636]
[1737220736816,0.063,252.6,252.48,42.24165286]
[1737220737000,0.063,252.6,252.49,11.97241111]
[1737220737201,0.063,252.6,252.59,29.6753636]
[1737220737613,0.063,252.6,252.57,29.6753636]
[1737220737793,29.6753636,252.68,252.57,29.6753636]
[1737220738199,29.6753636,252.66,252.55,27.7593636]
[1737220738517,29.6753636,252.7,252.58,29.6753636]
[1737220738898,1.3940796,252.77,252.56,29.6753636]
[1737220738899,29.6753636,252.66,252.56,29.6753636]
[1737220739111,29.6753636,252.64,252.54,29.6753636]
[1737220739312,29.6753636,252.72,252.48,0.59377629]
[1737220739313,29.6753636,252.62,252.52,29.6753636]
[1737220739511,29.6753636,252.6,252.5,29.6753636]
[1737220739720,29.6753636,252.58,252.48,29.6753636]
[1737220740020,29.6753636,252.56,252.45,29.6753636]
[1737220740219,29.6753636,252.64,252.54,29.6753636]
[1737220740427,19.7457,252.84,252.57,29.6753636]
[1737220740604,3.9552,252.83,252.37,0.59387548]
[1737220740810,29.6753636,252.78,252.39,15.44409076]
[1737220741007,29.6753636,252.8,252.69,29.6753636]
[1737220741219,29.6753636,252.82,252.71,29.6753636]
[1737220741519,29.6753636,252.76,252.65,29.6753636]
[1737220741722,29.6753636,252.72,252.59,29.6753636]
[1737220741911,29.6753636,252.72,252.48,29.6753636]
[1737220741912,29.6753636,252.72,252.61,29.6753636]
[1737220742223,29.6753636,252.74,252.63,29.6753636]
[1737220742424,29.6753636,252.79,252.67,29.6753636]
[1737220742800,29.6753636,252.79,252.61,0.59366663]
[1737220742801,29.6753636,252.79,252.69,29.6753636]
[1737220743022,29.6753636,252.85,252.74,29.6753636]
[1737220743497,29.6753636,252.91,252.8,29.6753636]
[1737220744305,29.6753636,252.93,252.82,29.6753636]
[1737220744514,29.6753636,252.95,252.84,29.6753636]
[1737220744700,29.6753636,252.95,252.75,0.59319663]
[1737220744701,29.6753636,252.97,252.86,29.6753636]
[1737220745327,29.6753636,253.0,252.88,29.6753636]
[1737220745625,29.6753636,252.92,252.8,29.6753636]
[1737220745930,29.6753636,252.94,252.82,29.6753636]
[1737220746106,29.6753636,252.97,252.86,29.6753636]
[1737220746307,13.8311,253.05,252.9,29.6753636]
[1737220746308,29.6753636,253.03,252.9,29.6753636]
[1737220746518,5.35871254,253.05,252.92,29.6753636]
[1737220746820,29.6753636,253.03,252.92,29.6753636]
[1737220747120,29.6753636,253.05,252.94,29.6753636]
[1737220747441,29.6753636,253.04,252.92,29.6753636]
[1737220747721,29.6753636,253.04,252.85,0.5929019]
[1737220747722,29.6753636,253.04,252.94,29.6753636]
[1737220747926,3.9501,253.16,253.02,29.6753636]
[1737220748113,19.549,253.36,253.06,29.6753636]
[1737220748114,29.6753636,253.18,253.06,29.6753636]
[1737220748616,29.6753636,253.16,253.04,29.6753636]
[1737220749211,0.03,253.17,253.06,29.6753636]
[1737220750412,0.03,253.17,253.08,29.6753636]
[1737220750814,3.9799,253.17,253.08,29.6753636]
[1737220751215,0.03,253.17,253.08,29.6753636]
[1737220751429,0.03,253.17,253.11,29.6753636]
[1737220751609,0.03,253.17,253.09,29.6753636]
[1737220752005,29.6753636,253.15,253.04,29.6753636]
[1737220752209,3.9799,253.17,253.1,29.6753636]
[1737220752422,0.03,253.17,253.1,29.6753636]
[1737220752718,0.03,253.17,253.12,29.6753636]
[1737220752926,0.03,253.17,252.97,0.59262223]
[1737220753130,20.0,253.09,253.01,29.6753636]
[1737220753432,20.0,253.11,253.01,29.6753636]
[1737220753615,20.0,253.09,253.01,29.6753636]
[1737220754221,49.6753636,253.1,252.99,29.6753636]
[1737220754517,20.0,253.06,252.87,0.59260431]
[1737220754824,29.6753636,253.02,252.92,29.6753636]
[1737220755013,20.0,252.97,252.88,29.6753636]
[1737220755327,29.6753636,252.96,252.86,29.6753636]
[1737220755523,42.7,253.09,252.91,29.6753636]
[1737220755832,29.6753636,253.02,252.91,29.6753636]
[1737220756126,29.6753636,253.02,252.84,29.6753636]
[1737220756127,20.0,252.95,252.84,29.6753636]
[1737220756304,29.6753636,252.96,252.86,29.6753636]
[1737220756506,29.6753636,253.0,252.88,29.6753636]
[1737220757113,9.8802,253.04,252.88,29.6753636]
[1737220757114,29.6753636,252.98,252.88,29.6753636]
[1737220757826,29.6753636,252.96,252.86,29.6753636]
[1737220758010,29.6753636,252.92,252.8,29.6753636]
[1737220758217,29.6753636,252.92,252.82,29.6753636]
[1737220758627,29.6753636,252.9,252.8,29.6753636]
[1737220758823,29.6753636,252.84,252.74,29.6753636]
[1737220759131,29.6753636,252.84,252.68,29.6753636]
[1737220759132,29.6753636,252.78,252.68,29.6753636]
[1737220759333,29.6753636,252.78,252.66,29.6753636]
[1737220759516,29.6753636,252.78,252.68,29.6753636]
[1737220759838,11.89,252.92,252.6,42.2259636]
[1737220759839,29.6753636,252.76,252.66,29.6753636]
[1737220760012,20.0,252.69,252.64,74.70202645]
[1737220760211,29.6753636,252.69,252.6,29.6753636]
[1737220760531,6.7675,252.99,252.61,0.59391952]
[1737220760734,3.9539,252.91,252.54,11.89]
[1737220760936,3.9524,253.01,252.59,23.776884]
[1737220761124,13.8336,253.01,252.6,0.59311236]
[1737220761326,3.9524,253.01,252.62,11.89]
[1737220761523,3.9524,253.01,252.91,29.6753636]
[1737220761724,29.6753636,252.99,252.89,29.6753636]
[1737220761921,29.6753636,252.99,252.87,29.6753636]
[1737220762122,29.6753636,252.99,252.88,0.59308052]
[1737220762317,29.6753636,252.97,252.87,29.6753636]
[1737220762635,29.6753636,252.94,252.83,29.6753636]
[1737220762816,29.6753636,252.96,252.85,29.6753636]
[1737220763012,29.6753636,252.96,252.84,0.59312235]
[1737220763013,29.6753636,252.94,252.83,29.6753636]
[1737220763217,29.6753636,252.94,252.84,0.59318525]
[1737220763517,29.6753636,252.96,252.85,29.6753636]
[1737220763723,3.9533,252.95,252.86,0.59312615]
[1737220764032,29.6753636,253.01,252.88,29.6753636]
[1737220764229,29.6753636,253.01,252.89,0.5930311]
[1737220764431,33.6277636,253.01,252.89,0.5930311]
[1737220764629,0.03,253.02,252.94,29.6753636]
[1737220764837,3.9823,253.02,252.92,29.6753636]
[1737220765030,3.9823,253.02,252.9,29.6753636]
[1737220765031,29.6753636,253.01,252.9,29.6753636]
[1737220765233,29.6753636,252.91,252.78,29.6753636]
[1737220765430,20.0,252.93,252.64,7.1652]
[1737220765633,29.6753636,252.75,252.64,29.6753636]
[1737220765824,29.6753636,252.69,252.6,29.6753636]
[1737220766026,29.6753636,252.71,252.61,0.59375067]
[1737220766233,29.6753636,252.75,252.64,29.6753636]
[1737220766420,29.6753636,252.75,252.65,0.59358049]
[1737220766943,29.6753636,252.75,252.66,0.5936251]
[1737220767237,29.6753636,252.75,252.65,0.59359405]
[1737220767829,3.9566,252.74,252.65,0.59359405]
[1737220768024,29.6753636,252.73,252.62,29.6753636]
[1737220768231,29.6753636,252.63,252.53,0.59364544]
[1737220768437,29.6753636,252.56,252.41,0.59387663]
[1737220768741,29.6753636,252.58,252.46,29.6753636]
[1737220768931,29.6753636,252.56,252.47,0.59404011]
[1737220769134,11.89,252.59,252.09,13.3105]
[1737220769333,59.3507272,252.45,252.18,29.7383636]
[1737220769537,29.6753636,252.4,252.28,29.6753636]
[1737220769722,3.9624,252.37,252.26,29.6753636]
[1737220769922,4.55644011,252.37,252.3,29.6753636]
[1737220770125,13.8574,252.57,252.36,29.6753636]
[1737220770336,0.59404011,252.56,252.37,0.59407776]
[1737220770552,0.59404011,252.56,252.31,0.03]
[1737220771131,29.6753636,252.52,252.4,29.6753636]
[1737220771338,0.59404011,252.51,252.44,29.6753636]
[1737220771525,3.9589,252.6,252.5,29.6753636]
[1737220771732,0.59404011,252.66,252.59,29.6753636]
[1737220771937,9.8938,252.69,252.51,30.26922362]
[1737220772136,9.8938,252.69,252.36,31.08588405]
[1737220772137,29.6753636,252.6,252.37,0.59396318]
[1737220772339,0.59404011,252.59,252.5,29.6753636]
[1737220772545,0.59404011,252.61,252.52,29.6753636]
[1737220772745,0.59404011,252.61,252.5,29.6753636]
[1737220772924,0.59404011,252.61,252.52,29.6753636]
[1737220773127,29.6753636,252.6,252.48,29.6753636]
[1737220773323,0.59404011,252.59,252.49,0.59400981]
[1737220773629,0.59404011,252.59,252.48,29.6753636]
[1737220773829,3.9591,252.58,252.49,0.59402475]
[1737220774025,29.6753636,252.5,252.32,12.8808]
[1737220774344,30.41825186,252.57,252.44,29.6753636]
[1737220774543,29.6753636,252.55,252.42,29.6753636]
[1737220774743,29.6753636,252.53,252.43,0.29731991]
[1737220775041,0.74270891,252.52,252.48,29.6753636]
[1737220775348,3.9591,252.58,252.5,29.6753636]
[1737220775646,3.9591,252.58,252.52,29.6753636]
[1737220775949,3.9588,252.6,252.52,29.6753636]
[1737220776148,0.74241774,252.59,252.52,29.6753636]
[1737220776344,0.74241774,252.59,252.5,29.6753636]
[1737220776542,0.74241774,252.59,252.48,29.6753636]
[1737220776745,0.74241774,252.59,252.49,0.29698664]
[1737220776942,3.958,252.65,252.58,29.6753636]
[1737220777246,3.958,252.65,252.6,29.6753636]
[1737220777545,29.6753636,252.78,252.64,29.6753636]
[1737220777856,3.9564,252.75,252.64,29.6753636]
[1737220778046,0.74206285,252.74,252.64,29.6753636]
[1737220778237,29.6753636,252.71,252.6,29.6753636]
[1737220778435,0.74214037,252.7,252.61,0.29624064]
[1737220778736,0.74214037,252.7,252.6,29.6753636]
[1737220778737,29.6753636,252.67,252.56,29.97159962]
[1737220778948,0.74233307,252.66,252.56,0.29662603]
[1737220779143,0.74233307,252.66,252.58,29.6753636]
[1737220779350,0.74223596,252.68,252.6,29.6753636]
[1737220779651,29.6753636,252.61,252.49,0.29643182]
[1737220779964,3.9592,252.57,252.49,0.29643182]
[1737220780156,0.74248224,252.56,252.49,0.29643182]
[1737220780537,3.9583,252.63,252.5,0.29697764]
[1737220780739,29.6753636,252.6,252.49,29.6753636]
[1737220781037,0.74245478,252.59,252.5,0.29686945]
[1737220781245,29.6753636,252.62,252.51,29.6753636]
[1737220781455,29.6753636,252.6,252.49,29.6753636]
[1737220781659,30.22257971,252.62,252.51,29.6753636]
[1737220781842,29.6753636,252.56,252.44,0.59388906]
[1737220782044,30.22257971,252.6,252.49,29.6753636]
[1737220782237,29.6753636,252.58,252.47,29.6753636]
[1737220782428,0.54721611,252.57,252.45,29.6753636]
[1737220782635,30.0,252.83,252.37,7.0582]
[1737220782636,29.6753636,252.72,252.56,29.6753636]
[1737220782945,19.75323779,252.92,252.48,29.6753636]
[1737220782946,3.9556,252.8,252.57,0.59371393]
[1737220783135,29.6753636,252.77,252.65,29.6753636]
[1737220783337,0.54721611,252.76,252.66,0.59357971]
[1737220783555,0.54721611,252.76,252.65,29.6753636]
[1737220783744,29.6753636,252.73,252.61,29.6753636]
[1737220783940,0.54721611,252.72,252.62,0.59369793]
[1737220784154,29.6753636,252.71,252.58,29.6753636]
[1737220784338,0.54721611,252.7,252.59,0.59375153]
[1737220785055,29.6753636,252.67,252.56,29.6753636]
[1737220785243,0.54721611,252.66,252.58,29.6753636]
[1737220785442,29.6753636,252.67,252.56,29.6753636]
[1737220785654,0.54721611,252.66,252.56,29.6753636]
[1737220786155,13.8531,252.65,252.56,29.6753636]
[1737220786352,0.54721611,252.64,252.56,29.6753636]
[1737220786550,0.54721611,252.64,252.58,29.6753636]
[1737220786852,3.9574,252.69,252.6,29.6753636]
[1737220787052,3.9574,252.69,252.48,29.6753636]
[1737220787053,0.54721611,252.68,252.58,29.6753636]
[1737220787241,29.6753636,252.64,252.52,29.6753636]
[1737220787430,13.8509,252.69,252.5,29.6753636]
[1737220787431,29.6753636,252.62,252.5,29.6753636]
[1737220787750,29.6753636,252.62,252.38,0.59392147]
[1737220787751,29.6753636,252.52,252.39,29.6753636]
[1737220788053,3.9605,252.49,252.42,29.6753636]
[1737220788252,0.54721611,252.48,252.4,29.6753636]
[1737220788556,19.7992,252.54,252.32,0.063]
[1737220788557,6.7568,252.89,252.47,28.07825953]
[1737220788731,3.9565,252.75,252.69,29.6753636]
[1737220788931,3.9546,252.87,252.69,29.6753636]
[1737220789139,29.6753636,252.81,252.69,29.6753636]
[1737220789445,29.6753636,252.81,252.6,29.6753636]
[1737220789446,0.59324371,252.8,252.64,29.6753636]
[1737220789645,29.6753636,252.76,252.65,0.59367704]
[1737220789853,0.59324371,252.75,252.67,29.6753636]
[1737220790066,9.8915,252.74,252.65,29.6753636]
[1737220790239,9.8915,252.74,252.48,29.6753636]
[1737220790240,0.59324371,252.73,252.63,29.6753636]
[1737220790560,30.26860731,252.73,252.61,29.6753636]
[1737220791246,30.26860731,252.73,252.69,29.6753636]
[1737220791247,0.59324371,252.73,252.69,29.6753636]
[1737220791452,3.956,252.78,252.6,29.6753636]
[1737220791453,4.54924371,252.78,252.72,29.6753636]
[1737220791765,3.956,252.78,252.72,29.6753636]
[1737220792053,9.8898,252.79,252.72,29.6753636]
[1737220792255,0.59324371,252.78,252.72,29.6753636]
[1737220792561,30.26860731,252.78,252.66,29.6753636]
[1737220793254,0.59324371,252.78,252.69,29.6753636]
[1737220793456,0.59324371,252.78,252.67,29.6753636]
[1737220793657,0.59324371,252.78,252.69,29.6753636]
[1737220794159,13.8475,252.75,252.64,29.6753636]
[1737220794358,0.59324371,252.74,252.64,29.6753636]
[1737220794660,29.6753636,252.72,252.6,29.6753636]
[1737220794842,0.59324371,252.71,252.62,29.6753636]
[1737220795043,0.59324371,252.73,252.62,29.6753636]
[1737220795439,29.6753636,252.63,252.37,0.59367653]
[1737220795655,29.6753636,252.49,252.37,30.26904013]
[1737220795851,29.6753636,252.47,252.37,30.26904013]
[1737220796060,29.6753636,252.47,252.37,0.59367653]
[1737220796362,4.55424371,252.46,252.37,30.26904013]
[1737220796665,3.961,252.46,252.39,29.6753636]
[1737220796956,29.6753636,252.54,252.43,29.6753636]
[1737220797139,29.6753636,252.54,252.44,0.59408791]
[1737220797339,29.6753636,252.56,252.45,29.6753636]
[1737220797539,13.8569,252.58,252.47,29.6753636]
[1737220797763,30.26860731,252.57,252.45,29.6753636]
[1737220798058,29.6753636,252.46,252.37,0.063]
[1737220798358,29.6753636,252.4,252.37,0.0001]
[1737220798564,0.59324371,252.39,252.32,0.063]
[1737220798858,29.6753636,252.33,252.31,0.0001]
[1737220799169,29.6753636,252.35,252.31,0.0001]
[1737220799339,0.59324371,252.34,252.33,29.6753636]
[1737220799543,30.26860731,252.42,252.31,29.6754636]
[1737220799846,30.26860731,252.42,252.31,0.0001]
[1737220800268,29.6753636,252.4,252.31,0.0001]
[1737220800440,13.8678,252.38,252.31,0.0001]
[1737220800643,13.82481215,252.38,252.31,0.0001]
[1737220800871,20.0,252.35,252.31,0.0001]
[1737220801047,29.6753636,252.32,252.31,0.0001]
[1737220801250,30.26860731,252.34,252.31,0.0001]
[1737220801456,0.59324371,252.34,252.31,0.0001]
[1737220801766,20.0,252.32,252.31,0.0001]
[1737220802067,49.6753636,252.32,252.31,0.0001]
[1737220802565,29.6753636,252.24,252.12,29.6753636]
[1737220802767,30.26860731,252.3,252.17,29.6753636]
[1737220802947,30.26860731,252.3,252.13,0.59464183]
[1737220803157,29.6753636,252.28,252.16,29.6753636]
[1737220803355,0.59324371,252.27,252.18,29.6753636]
[1737220803654,30.26860731,252.3,252.18,29.6753636]
[1737220803963,29.6753636,252.23,252.11,29.6753636]
[1737220804154,0.59324371,252.22,252.13,29.6753636]
[1737220804356,43.5514636,252.23,252.11,29.6753636]
[1737220804662,29.6753636,252.17,252.06,0.063]
[1737220804866,0.59324371,252.16,252.06,0.063]
[1737220805240,20.0,252.14,252.05,8.8044636]
[1737220805443,20.0,252.08,252.0,29.6753636]
[1737220805657,0.59324371,252.07,251.94,29.6753636]
[1737220805852,29.6753636,252.04,251.9,29.6753636]
[1737220806053,0.59324371,252.03,251.8,0.59542064]
[1737220806254,29.6753636,252.02,251.9,29.6753636]